[Event "European Womens-ch 2025"]
[Site "Rhodes"]
[Date "2025.04.05"]
[Round "6.1"]
[White "Narva, Mai"]
[Black "Khotenashvili, Bella"]
[Result "1/2-1/2"]
[Annotator "RC"]
[ECO "B13"]
[WhiteElo "2380"]
[BlackElo "2418"]
[PlyCount "40"]
[EventDate "2025.03.29"]
[EventType "swiss"]
[EventCountry "GRE"]
[SourceTitle "playchess.com"]
[Source "ChessBase"]
[SourceQuality "1"]
[TimeControl "40/5400+30:1800+30"]

1. e4 {[%emt 0:03:41]} c6 {[%emt 0:00:13]} 2. d4 {[%emt 0:00:08]} d5 {[%emt 0:00:05]} 3. exd5 {[%emt 0:00:14]} cxd5 {[%emt 0:00:08]} 4. Bd3 {[%emt 0:00:12]} Nc6 {[%emt 0:03:25]} 5. c3 {[%emt 0:00:11]} Qc7 {[%emt 0:00:17]} 6. h3 {[%emt 0:00:22]} Nf6 {[%emt 0:00:52]} 7. Nf3 {[%emt 0:00:17]} g6 {[%emt 0:00:05]} 8. O-O {[%emt 0:00:22]} Bf5 {[%emt 0:00:16]} 9. Bb5 {[%emt 0:00:29]} Bg7 {[%emt 0:02:45]} 10. Re1 {[%emt 0:00:29]} O-O {[%emt 0:04:59]} 11. Be3 {[%emt 0:00:27]} a6 {[%emt 0:19:02]} 12. Bf1 {[%emt 0:00:38]} Nd7 {[%emt 0:07:17]} 13. Na3 {[%emt 0:25:01]} b5 {[%emt 0:14:19]} 14. Nh4 {[%emt 0:20:48]} Be6 {[%emt 0:03:56]} 15. Qd2 {[%emt 0:00:34]} Nf6 {[%emt 0:06:52]} 16. Bd3 {[%emt 0:03:11]} Ne4 {[%emt 0:09:59]} 17. Bxe4 {[%emt 0:02:46]} dxe4 {[%emt 0:00:01]} 18. Bf4 {[%emt 0:00:38]} Qd7 {[%emt 0:00:50]} 19. Rxe4 {[%emt 0:01:55]} Bxa2 {[%emt 0:01:08]} 20. Bh6 {[%emt 0:11:08]} Bd5 {[%emt 0:02:44]} 1/2-1/2

[Event "European Womens-ch 2025"]
[Site "Rhodes"]
[Date "2025.04.05"]
[Round "6.2"]
[White "Maltsevskaya, Aleksandra"]
[Black "Kirtadze, Anastasia"]
[Result "0-1"]
[Annotator "RC"]
[ECO "A33"]
[WhiteElo "2376"]
[BlackElo "2180"]
[PlyCount "110"]
[EventDate "2025.03.29"]
[EventType "swiss"]
[EventCountry "GRE"]
[SourceTitle "playchess.com"]
[Source "ChessBase"]
[SourceQuality "1"]
[TimeControl "40/5400+30:1800+30"]

1. c4 {[%emt 0:00:04]} c5 {[%emt 0:01:05]} 2. Nf3 {[%emt 0:00:17]} Nc6 {[%emt 0:00:45]} 3. Nc3 {[%emt 0:00:09]} Nf6 {[%emt 0:01:04]} 4. d4 {[%emt 0:00:29]} cxd4 {[%emt 0:03:06]} 5. Nxd4 {[%emt 0:00:06]} e6 {[%emt 0:03:45]} 6. a3 {[%emt 0:00:30]} Be7 {[%emt 0:18:10]} 7. e3 {[%emt 0:03:51]} O-O {[%emt 0:03:11]} 8. Be2 {[%emt 0:00:40]} d5 {[%emt 0:08:04]} 9. cxd5 {[%emt 0:00:54]} Nxd4 {[%emt 0:02:30]} 10. exd4 {[%emt 0:03:59]} Nxd5 {[%emt 0:03:52]} 11. O-O {[%emt 0:01:14]} Bf6 {[%emt 0:02:01]} 12. Bf3 {[%emt 0:04:17]} Ne7 {[%emt 0:09:04]} 13. Bf4 {[%emt 0:13:07]} Bxd4 {[%emt 0:05:17]} 14. Nb5 {[%emt 0:00:40]} e5 {[%emt 0:01:35]} 15. Nxd4 {[%emt 0:07:25]} exf4 {[%emt 0:01:29]} 16. Re1 {[%emt 0:21:54]} Ng6 {[%emt 0:03:58]} 17. Nb5 {[%emt 0:11:48]} Qb6 {[%emt 0:04:44]} 18. a4 {[%emt 0:11:13]} Rd8 {[%emt 0:05:07]} 19. Qc2 {[%emt 0:00:51]} Be6 {[%emt 0:03:34]} 20. Qc7 {[%emt 0:04:22]} Rd7 {[%emt 0:01:04]} 21. Qxb6 {[%emt 0:04:54]} axb6 {[%emt 0:00:07]} 22. h3 {[%emt 0:00:10]} Nh4 {[%emt 0:06:22]} 23. Be4 {[%emt 0:01:17]} g5 {[%emt 0:00:35]} 24. Nc3 {[%emt 0:02:11]} Bb3 {[%emt 0:07:01]} 25. g3 {[%emt 0:02:31]} fxg3 {[%emt 0:01:00]} 26. fxg3 {[%emt 0:00:05]} Ng6 {[%emt 0:00:04]} 27. Bxg6 {[%emt 0:00:21]} hxg6 {[%emt 0:00:19]} 28. Re5 {[%emt 0:00:07]} Ra5 {[%emt 0:02:39]} 29. Rae1 {[%emt 0:00:31]} Rxe5 {[%emt 0:02:28]} 30. Rxe5 {[%emt 0:00:05]} Bc2 {[%emt 0:00:56]} 31. Re2 {[%emt 0:05:07]} Bf5 {[%emt 0:00:28]} 32. g4 {[%emt 0:00:08]} Bd3 {[%emt 0:00:20]} 33. Re5 {[%emt 0:00:19]} f5 {[%emt 0:00:35]} 34. Rd5 {[%emt 0:00:20]} Rxd5 {[%emt 0:00:22]} 35. Nxd5 {[%emt 0:00:05]} b5 {[%emt 0:00:21]} 36. a5 {[%emt 0:01:13]} Kf7 {[%emt 0:00:27]} 37. Nb4 {[%emt 0:01:02]} Be4 {[%emt 0:00:44]} 38. a6 {[%emt 0:00:38]} bxa6 {[%emt 0:00:21]} 39. Nxa6 {[%emt 0:00:04]} f4 {[%emt 0:00:47]} 40. Nc5 {[%emt 0:00:00]} Bc6 {[%emt 0:00:00]} 41. Kf2 {[%emt 0:02:40]} Kf6 {[%emt 0:03:36]} 42. Ke2 {[%emt 0:09:27]} Ke5 {[%emt 0:14:47]} 43. Kd3 {[%emt 0:07:44]} Bg2 {[%emt 0:06:36]} 44. Nd7+ {[%emt 0:00:08]} Ke6 {[%emt 0:03:09]} 45. Nf8+ {[%emt 0:00:11]} Kd5 {[%emt 0:02:53]} 46. Ke2 {[%emt 0:00:06]} Kc4 {[%emt 0:02:02]} 47. h4 {[%emt 0:01:22]} gxh4 {[%emt 0:00:41]} 48. Nxg6 {[%emt 0:00:04]} h3 {[%emt 0:00:44]} 49. Kf2 {[%emt 0:00:07]} Be4 {[%emt 0:00:30]} 50. Ne5+ {[%emt 0:00:59]} Kd5 {[%emt 0:00:18]} 51. Nf3 {[%emt 0:00:34]} Bxf3 {[%emt 0:00:22]} 52. Kxf3 {[%emt 0:00:06]} Ke5 {[%emt 0:00:19]} 53. b4 {[%emt 0:00:21]} Kf6 {[%emt 0:00:20]} 54. Kf2 {[%emt 0:00:22]} Kg5 {[%emt 0:00:08]} 55. Kf3 {[%emt 0:00:05]} Kh4 {[%emt 0:00:12]} 0-1

[Event "European Womens-ch 2025"]
[Site "Rhodes"]
[Date "2025.04.05"]
[Round "6.3"]
[White "Roebers, Eline"]
[Black "Injac, Teodora"]
[Result "0-1"]
[Annotator "RC"]
[ECO "B12"]
[WhiteElo "2367"]
[BlackElo "2454"]
[PlyCount "74"]
[EventDate "2025.03.29"]
[EventType "swiss"]
[EventCountry "GRE"]
[SourceTitle "playchess.com"]
[Source "ChessBase"]
[SourceQuality "1"]
[TimeControl "40/5400+30:1800+30"]

1. e4 {[%emt 0:00:03]} c6 {[%emt 0:02:02]} 2. d4 {[%emt 0:00:03]} d5 {[%emt 0:00:06]} 3. e5 {[%emt 0:00:02]} c5 {[%emt 0:00:24]} 4. c3 {[%emt 0:00:03]} Nc6 {[%emt 0:01:04]} 5. Bb5 {[%emt 0:00:05]} Qa5 {[%emt 0:04:08]} 6. Ba4 {[%emt 0:00:08]} Bd7 {[%emt 0:27:14]} 7. dxc5 {[%emt 0:06:23]} Nxe5 {[%emt 0:00:27]} 8. Bxd7+ {[%emt 0:00:36]} Nxd7 {[%emt 0:00:04]} 9. b4 {[%emt 0:00:04]} Qc7 {[%emt 0:01:02]} 10. Qxd5 {[%emt 0:00:30]} Ngf6 {[%emt 0:00:23]} 11. Qd4 {[%emt 0:23:27]} e5 {[%emt 0:03:42]} 12. Qc4 {[%emt 0:05:10]} Be7 {[%emt 0:10:00]} 13. Na3 {[%emt 0:08:12]} O-O {[%emt 0:01:55]} 14. Ne2 {[%emt 0:00:24]} Rfc8 {[%emt 0:05:20]} 15. Qb3 {[%emt 0:00:24]} b6 {[%emt 0:00:48]} 16. cxb6 {[%emt 0:01:11]} Nxb6 {[%emt 0:04:03]} 17. O-O {[%emt 0:02:04]} Ne4 {[%emt 0:02:49]} 18. Nb1 {[%emt 0:05:01]} Nc4 {[%emt 0:06:22]} 19. a4 {[%emt 0:00:43]} Rab8 {[%emt 0:01:14]} 20. Qc2 {[%emt 0:04:16]} Qb7 {[%emt 0:07:04]} 21. Qd3 {[%emt 0:01:54]} Qc6 {[%emt 0:05:13]} 22. Ng3 {[%emt 0:04:15]} Nxg3 {[%emt 0:00:29]} 23. Qxg3 {[%emt 0:00:09]} Rd8 {[%emt 0:01:36]} 24. Na3 {[%emt 0:07:22]} Bf6 {[%emt 0:00:50]} 25. Qg4 {[%emt 0:10:10]} Nb6 {[%emt 0:06:44]} 26. a5 {[%emt 0:03:41]} Nd5 {[%emt 0:00:29]} 27. Bb2 {[%emt 0:02:14]} Nf4 {[%emt 0:01:07]} 28. Rfd1 {[%emt 0:05:08]} Qa4 {[%emt 0:01:08]} 29. g3 {[%emt 0:04:54]} h5 {[%emt 0:04:17]} 30. Qf3 {[%emt 0:00:25]} Nh3+ {[%emt 0:01:08]} 31. Kg2 {[%emt 0:04:03]} Ng5 {[%emt 0:00:01]} 32. Qe2 {[%emt 0:00:57]} Qc6+ {[%emt 0:00:01]} 33. f3 {[%emt 0:00:05]} e4 {[%emt 0:00:27]} 34. Qc4 {[%emt 0:00:57]} exf3+ {[%emt 0:00:28]} 35. Kf1 {[%emt 0:01:47]} Qa4 {[%emt 0:01:16]} 36. Rxd8+ {[%emt 0:00:52]} Rxd8 {[%emt 0:00:01]} 37. Re1 {[%emt 0:00:01]} Qd7 {[%emt 0:00:46]} 0-1

[Event "European Womens-ch 2025"]
[Site "Rhodes"]
[Date "2025.04.05"]
[Round "6.4"]
[White "Milliet, Sophie"]
[Black "Socko, Monika"]
[Result "1-0"]
[Annotator "ChessBase"]
[ECO "B12"]
[WhiteElo "2371"]
[BlackElo "2369"]
[PlyCount "117"]
[EventDate "2025.03.29"]
[EventType "swiss"]
[EventCountry "GRE"]
[SourceTitle "playchess.com"]
[Source "ChessBase"]
[SourceQuality "1"]
[TimeControl "40/5400+30:1800+30"]

1. e4 {[%emt 0:00:04]} c6 {[%emt 0:00:03]} 2. d4 {[%emt 0:00:08]} d5 {[%emt 0:00:04]} 3. e5 {[%emt 0:00:07]} c5 {[%emt 0:00:04]} 4. dxc5 {[%emt 0:01:46]} e6 {[%emt 0:00:04]} 5. Be3 {[%emt 0:00:31]} Nd7 {[%emt 0:00:12]} 6. Nf3 {[%emt 0:00:19]} Bxc5 {[%emt 0:00:12]} 7. Bxc5 {[%emt 0:00:14]} Nxc5 {[%emt 0:00:03]} 8. Qd4 {[%emt 0:00:25]} Qb6 {[%emt 0:00:05]} 9. Nbd2 {[%emt 0:01:40]} Ne7 {[%emt 0:00:30]} 10. Nb3 {[%emt 0:00:10]} Nxb3 {[%emt 0:04:34]} 11. axb3 {[%emt 0:00:08]} Qxd4 {[%emt 0:01:56]} 12. Nxd4 {[%emt 0:00:01]} Bd7 {[%emt 0:00:18]} 13. f4 {[%emt 0:03:27]} O-O {[%emt 0:01:40]} 14. Bd3 {[%emt 0:00:53]} Nc6 {[%emt 0:08:49]} 15. Nxc6 {[%emt 0:12:32]} Bxc6 {[%emt 0:00:12]} 16. O-O-O {[%emt 0:06:09]} a5 {[%emt 0:07:31]} 17. Rhf1 {[%emt 0:02:09]} b5 {[%emt 0:04:15]} 18. g4 {[%emt 0:03:08]} b4 {[%emt 0:03:34]} 19. f5 {[%emt 0:02:04]} Rfb8 {[%emt 0:01:39]} 20. Rf4 {[%emt 0:08:22]} Bb5 {[%emt 0:02:22]} 21. Kd2 {[%emt 0:10:52]} Bxd3 {[%emt 0:12:51]} 22. Kxd3 {[%emt 0:00:01]} Rb5 {[%emt 0:00:07]} 23. fxe6 {[%emt 0:05:58]} fxe6 {[%emt 0:00:05]} 24. Rdf1 {[%emt 0:00:07]} Rb7 {[%emt 0:06:27]} 25. g5 {[%emt 0:01:31]} Rc8 {[%emt 0:00:32]} 26. h4 {[%emt 0:01:47]} Rbc7 {[%emt 0:00:04]} 27. R1f2 {[%emt 0:00:08]} Rc5 {[%emt 0:00:55]} 28. h5 {[%emt 0:02:15]} d4 {[%emt 0:02:44]} 29. Re2 {[%emt 0:01:46]} Rf8 {[%emt 0:03:01]} 30. Rxf8+ {[%emt 0:01:22]} Kxf8 {[%emt 0:00:02]} 31. g6 {[%emt 0:03:57]} hxg6 {[%emt 0:00:56]} 32. hxg6 {[%emt 0:00:03]} Ke8 {[%emt 0:01:45]} 33. Ke4 {[%emt 0:12:19]} d3 {[%emt 0:08:17]} 34. cxd3 {[%emt 0:00:08]} Rc1 {[%emt 0:00:02]} 35. Rg2 {[%emt 0:00:45]} Rf1 {[%emt 0:02:15]} 36. Kd4 {[%emt 0:04:12]} Rf5 {[%emt 0:00:33]} 37. Rg1 {[%emt 0:00:35]} Kd7 {[%emt 0:01:34]} 38. Ra1 {[%emt 0:01:26]} Kc6 {[%emt 0:01:35]} 39. Rxa5 {[%emt 0:07:54]} Rf4+ {[%emt 0:00:04]} 40. Ke3 {[%emt 0:00:00]} Rg4 {[%emt 0:00:00]} 41. d4 {[%emt 0:02:53]} Kb6 {[%emt 0:15:05]} 42. Ra8 {[%emt 0:02:44]} Rxg6 {[%emt 0:00:35]} 43. Kd3 {[%emt 0:01:03]} Kb7 {[%emt 0:05:12]} 44. Rg8 {[%emt 0:06:24]} Kc6 {[%emt 0:01:16]} 45. Kc4 {[%emt 0:00:30]} Rg2 {[%emt 0:00:02]} 46. Rd8 {[%emt 0:00:37]} Kc7 {[%emt 0:00:58]} 47. Rd6 {[%emt 0:02:26]} Rg6 {[%emt 0:00:03]} 48. Kxb4 {[%emt 0:03:34]} Rh6 {[%emt 0:00:01]} 49. Kc5 {[%emt 0:08:42]} g5 {[%emt 0:00:04]} 50. b4 {[%emt 0:00:26]} g4 {[%emt 0:06:03]} 51. b5 {[%emt 0:00:09]} Rg6 {[%emt 0:02:00]} 52. b6+ {[%emt 0:01:04]} Kb7 {[%emt 0:00:02]} 53. Rd7+ {[%emt 0:00:27]} Kb8 {[%emt 0:00:01]} 54. Kc6 {[%emt 0:00:46]} Rg8 {[%emt 0:00:02]} 55. Rb7+ {[%emt 0:00:29]} Ka8 {[%emt 0:00:10]} 56. Ra7+ {[%emt 0:00:06]} Kb8 {[%emt 0:00:01]} 57. Ra1 {[%emt 0:03:29]} Rg7 {[%emt 0:00:03]} 58. Rf1 {[%emt 0:00:39]} Rg8 {[%emt 0:00:06]} 59. b7 {[%emt 0:00:40]} 1-0

[Event "European Womens-ch 2025"]
[Site "Rhodes"]
[Date "2025.04.05"]
[Round "6.5"]
[White "Tsolakidou, Stavroula"]
[Black "Bulmaga, Irina"]
[Result "1/2-1/2"]
[Annotator "RC"]
[ECO "D35"]
[WhiteElo "2445"]
[BlackElo "2362"]
[PlyCount "108"]
[EventDate "2025.03.29"]
[EventType "swiss"]
[EventCountry "GRE"]
[SourceTitle "playchess.com"]
[Source "ChessBase"]
[SourceQuality "1"]
[TimeControl "40/5400+30:1800+30"]

1. d4 {[%emt 0:03:43]} Nf6 {[%emt 0:00:12]} 2. c4 {[%emt 0:00:09]} e6 {[%emt 0:00:07]} 3. Nc3 {[%emt 0:00:16]} d5 {[%emt 0:00:08]} 4. Nf3 {[%emt 0:00:26]} Be7 {[%emt 0:00:18]} 5. cxd5 {[%emt 0:00:30]} exd5 {[%emt 0:00:25]} 6. Bf4 {[%emt 0:00:17]} c6 {[%emt 0:04:00]} 7. e3 {[%emt 0:00:20]} Bf5 {[%emt 0:01:52]} 8. Nh4 {[%emt 0:00:26]} Bg4 {[%emt 0:09:54]} 9. Qc2 {[%emt 0:00:34]} Nh5 {[%emt 0:03:02]} 10. h3 {[%emt 0:00:46]} Be6 {[%emt 0:09:39]} 11. Nf3 {[%emt 0:00:22]} Bd6 {[%emt 0:15:31]} 12. Bxd6 {[%emt 0:11:43]} Qxd6 {[%emt 0:00:09]} 13. Bd3 {[%emt 0:00:56]} g6 {[%emt 0:09:28]} 14. g4 {[%emt 0:03:29]} Ng7 {[%emt 0:00:48]} 15. O-O-O {[%emt 0:04:06]} Nd7 {[%emt 0:01:25]} 16. Kb1 {[%emt 0:04:34]} O-O {[%emt 0:08:04]} 17. Rdg1 {[%emt 0:21:53]} c5 {[%emt 0:08:22]} 18. dxc5 {[%emt 0:02:13]} Nxc5 {[%emt 0:00:20]} 19. Nd4 {[%emt 0:00:55]} Rac8 {[%emt 0:00:37]} 20. h4 {[%emt 0:08:03]} Bd7 {[%emt 0:03:36]} 21. Qd2 {[%emt 0:05:43]} Nge6 {[%emt 0:06:11]} 22. Bc2 {[%emt 0:01:30]} Rfe8 {[%emt 0:06:35]} 23. h5 {[%emt 0:03:46]} Ne4 {[%emt 0:02:20]} 24. Bxe4 {[%emt 0:00:58]} dxe4 {[%emt 0:00:10]} 25. hxg6 {[%emt 0:00:46]} hxg6 {[%emt 0:00:30]} 26. Nxe4 {[%emt 0:02:38]} Qe5 {[%emt 0:00:06]} 27. f3 {[%emt 0:00:52]} Bc6 {[%emt 0:07:30]} 28. Nxc6 {[%emt 0:04:06]} Rxc6 {[%emt 0:00:39]} 29. g5 {[%emt 0:04:48]} Rd8 {[%emt 0:00:04]} 30. Qg2 {[%emt 0:01:15]} Kf8 {[%emt 0:01:11]} 31. f4 {[%emt 0:06:34]} Qd5 {[%emt 0:01:42]} 32. Rh8+ {[%emt 0:02:59]} Ke7 {[%emt 0:00:01]} 33. Rxd8 {[%emt 0:00:12]} Nxd8 {[%emt 0:00:35]} 34. Nf6 {[%emt 0:01:03]} Qd3+ {[%emt 0:00:50]} 35. Ka1 {[%emt 0:00:04]} Rc2 {[%emt 0:01:06]} 36. Qd5 {[%emt 0:02:27]} Qxd5 {[%emt 0:00:18]} 37. Nxd5+ {[%emt 0:00:04]} Ke6 {[%emt 0:00:23]} 38. Rd1 {[%emt 0:00:15]} Nc6 {[%emt 0:00:40]} 39. Nc3 {[%emt 0:01:36]} Na5 {[%emt 0:00:32]} 40. Kb1 {[%emt 0:00:00]} Rg2 {[%emt 0:00:00]} 41. b3 {[%emt 0:07:56]} Nc6 {[%emt 0:04:45]} 42. Ne4 {[%emt 0:10:37]} b6 {[%emt 0:03:35]} 43. Rd6+ {[%emt 0:02:50]} Kf5 {[%emt 0:01:15]} 44. Rxc6 {[%emt 0:11:42]} Kxe4 {[%emt 0:00:10]} 45. Rf6 {[%emt 0:00:04]} Kxe3 {[%emt 0:00:22]} 46. Rxf7 {[%emt 0:00:03]} b5 {[%emt 0:04:17]} 47. b4 {[%emt 0:01:38]} Rg4 {[%emt 0:06:01]} 48. a3 {[%emt 0:01:28]} Rxf4 {[%emt 0:01:11]} 49. Rf6 {[%emt 0:00:06]} Rg4 {[%emt 0:02:36]} 50. Rxg6 {[%emt 0:00:05]} Kf4 {[%emt 0:00:58]} 51. Kc2 {[%emt 0:01:30]} Rg2+ {[%emt 0:00:39]} 52. Kc3 {[%emt 0:00:23]} Rg3+ {[%emt 0:00:10]} 53. Kb2 {[%emt 0:00:37]} Rg2+ {[%emt 0:00:03]} 54. Kc3 {[%emt 0:00:34]} Rg3+ {[%emt 0:00:02]} 1/2-1/2

[Event "European Womens-ch 2025"]
[Site "Rhodes"]
[Date "2025.04.05"]
[Round "6.6"]
[White "Mammadova, Gulnar"]
[Black "Batsiashvili, Nino"]
[Result "1/2-1/2"]
[Annotator "TA"]
[ECO "B31"]
[WhiteElo "2342"]
[BlackElo "2473"]
[PlyCount "35"]
[EventDate "2025.03.29"]
[EventType "swiss"]
[EventCountry "GRE"]
[SourceTitle "playchess.com"]
[Source "ChessBase"]
[SourceQuality "1"]
[TimeControl "40/5400+30:1800+30"]

{[%evp 11,35,27,29,30,36,23,26,0,8,5,5,6,6,2,8,0,11,12,14,7,22,16,21,14,19,28]} 1. e4 {[%emt 0:00:03]} c5 {[%emt 0:00:04]} 2. Nf3 {[%emt 0:00:08]} Nc6 {[%emt 0:00:03]} 3. Bb5 {[%emt 0:00:28]} g6 {[%emt 0:00:05]} 4. O-O {[%emt 0:00:49]} Bg7 {[%emt 0:00:05]} 5. d3 {[%emt 0:02:28]} d6 {[%emt 0:00:12]} 6. Bxc6+ {[%emt 0:02:45]} bxc6 {[%emt 0:00:01] [#]} 7. e5 $1 {[%emt 0:00:13] The modern move. B31: Sicilian: 2...Nc6 3 Bb5 g6.} Bg4 {[%emt 0:01:45]} 8. exd6 {[%emt 0:01:32]} exd6 {[%emt 0:00:22]} 9. Nbd2 {[%emt 0:00:53] White has an edge.} Ne7 {[%emt 0:02:20] The position is equal.} 10. h3 {[%emt 0:00:09]} Bxf3 {[%emt 0:01:00]} 11. Nxf3 {[%emt 0:00:07]} O-O {[%emt 0:01:05]} 12. c3 {[%emt 0:00:25]} Rb8 $146 {[%emt 0:01:10]} (12... Qd7 13. Bg5 Nf5 14. Re1 Rae8 15. Qa4 h6 16. Bf4 Re6 17. Re4 Rb8 18. Qc2 Rbe8 {½-½ Nepomniachtchi,I (2779)-Vachier Lagrave,M (2747) Global Chess League rapid 2023 (7.1)}) 13. Qc2 {[%emt 0:02:48]} Re8 {[%emt 0:08:17]} 14. Re1 {[%emt 0:02:04]} Nd5 {[%emt 0:03:22]} 15. Bd2 {[%emt 0:00:56]} Rxe1+ {[%emt 0:08:20]} 16. Rxe1 {[%emt 0:00:14]} Qd7 {[%emt 0:02:12]} 17. Bc1 {[%emt 0:03:05]} h6 {[%emt 0:05:41]} 18. Qa4 {[%emt 0:03:41] Weighted Error Value: White=0.04 (flawless) /Black=0.03 (flawless)   OK:         	White=7     	Black=6} 1/2-1/2

[Event "European Womens-ch 2025"]
[Site "Rhodes"]
[Date "2025.04.05"]
[Round "6.7"]
[White "Savina, Anastasia"]
[Black "Arabidze, Meri"]
[Result "1/2-1/2"]
[Annotator "RC"]
[ECO "E49"]
[WhiteElo "2331"]
[BlackElo "2447"]
[PlyCount "79"]
[EventDate "2025.03.29"]
[EventType "swiss"]
[EventCountry "GRE"]
[SourceTitle "playchess.com"]
[Source "ChessBase"]
[SourceQuality "1"]
[TimeControl "40/5400+30:1800+30"]

1. d4 {[%emt 0:07:30]} Nf6 {[%emt 0:00:06]} 2. c4 {[%emt 0:00:36]} e6 {[%emt 0:00:05]} 3. Nc3 {[%emt 0:00:23]} Bb4 {[%emt 0:00:15]} 4. e3 {[%emt 0:00:07]} O-O {[%emt 0:00:23]} 5. Bd3 {[%emt 0:01:33]} d5 {[%emt 0:00:22]} 6. a3 {[%emt 0:00:12]} Bxc3+ {[%emt 0:00:28]} 7. bxc3 {[%emt 0:00:05]} dxc4 {[%emt 0:00:09]} 8. Bxc4 {[%emt 0:00:04]} c5 {[%emt 0:00:11]} 9. Ne2 {[%emt 0:00:35]} Qc7 {[%emt 0:00:35]} 10. Bd3 {[%emt 0:00:12]} Nc6 {[%emt 0:00:56]} 11. f4 {[%emt 0:02:36]} Ne7 {[%emt 0:00:11]} 12. O-O {[%emt 0:05:40]} b6 {[%emt 0:00:15]} 13. e4 {[%emt 0:02:28]} cxd4 {[%emt 0:02:57]} 14. cxd4 {[%emt 0:00:10]} Bb7 {[%emt 0:01:08]} 15. Ng3 {[%emt 0:00:40]} Qc3 {[%emt 0:00:34]} 16. Ra2 {[%emt 0:00:28]} Qxd4+ {[%emt 0:00:38]} 17. Kh1 {[%emt 0:00:14]} Rfd8 {[%emt 0:01:10]} 18. Rd2 {[%emt 0:00:58]} Qc5 {[%emt 0:02:25]} 19. Bb2 {[%emt 0:02:18]} Ne8 {[%emt 0:00:12]} 20. h3 {[%emt 0:36:39]} Qa5 {[%emt 0:18:40]} 21. Rff2 {[%emt 0:08:50]} Rd6 {[%emt 0:15:30]} 22. e5 {[%emt 0:08:32]} Rdd8 {[%emt 0:07:49]} 23. f5 {[%emt 0:02:48]} exf5 {[%emt 0:12:38]} 24. Nxf5 {[%emt 0:08:15]} Nxf5 {[%emt 0:05:02]} 25. Bxf5 {[%emt 0:00:11]} Rxd2 {[%emt 0:04:06]} 26. Rxd2 {[%emt 0:01:44]} Qc5 {[%emt 0:00:21]} 27. Rd7 {[%emt 0:03:06]} Qc6 {[%emt 0:06:16]} 28. Bxh7+ {[%emt 0:04:12]} Kxh7 {[%emt 0:04:48]} 29. Qh5+ {[%emt 0:00:14]} Qh6 {[%emt 0:00:28]} 30. Qxh6+ {[%emt 0:00:35]} Kxh6 {[%emt 0:00:20]} 31. Rxb7 {[%emt 0:00:06]} Kg6 {[%emt 0:00:39]} 32. Kh2 {[%emt 0:01:43]} f6 {[%emt 0:00:42]} 33. e6 {[%emt 0:02:25]} Nd6 {[%emt 0:01:57]} 34. Rd7 {[%emt 0:00:07]} Nc4 {[%emt 0:00:44]} 35. Bc3 {[%emt 0:01:04]} a6 {[%emt 0:04:03]} 36. a4 {[%emt 0:00:31]} Re8 {[%emt 0:00:41]} 37. Rc7 {[%emt 0:00:36]} b5 {[%emt 0:02:39]} 38. Rc6 {[%emt 0:00:30]} Ne3 {[%emt 0:05:37]} 39. Rxa6 {[%emt 0:00:30]} bxa4 {[%emt 0:01:29]} 40. Rxa4 {[%emt 0:00:00]} 1/2-1/2